[Event "Vienna Championship-B 2022"]
[Site "Vienna"]
[Date "2022.09.18"]
[Round "2.7"]
[White "Bytyqi, Kujtim"]
[Black "Marinovic, Sara"]
[Result "1-0"]
[ECO "C78"]
[WhiteElo "1862"]
[BlackElo "1384"]
[Annotator "NA COMBH"]
[PlyCount "101"]
[EventDate "2022.09.17"]
[EventType "swiss"]
[EventCountry "AUT"]
[SourceTitle "playchess.com"]
[Source "ChessBase"]
[SourceQuality "1"]
[TimeControl "5400+30"]

1. e4 {[%emt 0:00:05]} e5 {[%emt 0:00:36]} 2. Nf3 {[%emt 0:00:19]} Nc6 {[%emt 0:00:06]} 3. Bb5 {[%emt 0:00:14]} a6 {[%emt 0:00:08]} 4. Ba4 {[%emt 0:00:04]} Nf6 {[%emt 0:00:08]} 5. O-O {[%emt 0:00:16]} b5 {[%emt 0:00:08]} 6. Bb3 {[%emt 0:00:05]} Bc5 {[%emt 0:00:07]} 7. c3 {[%emt 0:02:53]} d6 {[%emt 0:00:18]} 8. d4 {[%emt 0:01:24]} Bb6 {[%emt 0:00:18]} 9. dxe5 {[%emt 0:02:20]} Nxe5 {[%emt 0:09:01]} 10. Nxe5 {[%emt 0:00:34]} dxe5 {[%emt 0:00:07]} 11. Qxd8+ {[%emt 0:00:19]} Kxd8 {[%emt 0:00:09]} 12. Bxf7 {[%emt 0:01:07]} Bb7 {[%emt 0:03:38]} 13. Rd1+ {[%emt 0:02:40]} Ke7 {[%emt 0:02:31]} 14. Bd5 {[%emt 0:00:44]} Bxd5 {[%emt 0:00:35]} 15. exd5 {[%emt 0:00:19]} Ng4 {[%emt 0:00:31]} 16. Bg5+ {[%emt 0:00:34]} Kd6 {[%emt 0:02:37]} 17. Bh4 {[%emt 0:14:16]} Rhf8 {[%emt 0:01:38]} 18. Rd2 {[%emt 0:00:39]} g5 {[%emt 0:11:40]} 19. Bg3 {[%emt 0:01:17]} h5 {[%emt 0:01:20]} 20. h4 {[%emt 0:01:04]} gxh4 {[%emt 0:01:34]} 21. Bxh4 {[%emt 0:00:12]} Nxf2 {[%emt 0:01:43]} 22. Rxf2 {[%emt 0:00:23]} Bxf2+ {[%emt 0:00:07]} 23. Bxf2 {[%emt 0:00:08]} Kxd5 {[%emt 0:00:55]} 24. Na3 {[%emt 0:00:52]} Rf7 {[%emt 0:07:29]} 25. c4+ {[%emt 0:01:10]} bxc4 {[%emt 0:01:06]} 26. Rd1+ {[%emt 0:00:08]} Ke6 {[%emt 0:00:46]} 27. Nxc4 {[%emt 0:00:12]} e4 {[%emt 0:15:47]} 28. Rd4 {[%emt 0:01:27]} Rf4 {[%emt 0:10:08]} 29. Bg3 {[%emt 0:00:59]} Rg4 {[%emt 0:00:09]} 30. Bxc7 {[%emt 0:01:54]} e3 {[%emt 0:08:39]} 31. Rd6+ {[%emt 0:00:58]} Ke7 {[%emt 0:00:19]} 32. Nxe3 {[%emt 0:00:25]} Re4 {[%emt 0:01:03]} 33. Nd5+ {[%emt 0:01:03]} Kf7 {[%emt 0:00:51]} 34. Ba5 {[%emt 0:03:31]} Rd4 {[%emt 0:03:03]} 35. Bc3 {[%emt 0:00:49]} Rd1+ {[%emt 0:00:59]} 36. Kf2 {[%emt 0:00:42]} Rf8 {[%emt 0:04:32]} 37. Rf6+ {[%emt 0:00:19]} Ke8 {[%emt 0:00:06]} 38. Nc7+ {[%emt 0:02:18]} Ke7 {[%emt 0:00:09]} 39. Rxf8 {[%emt 0:00:26]} Kxf8 {[%emt 0:00:05]} 40. Nxa6 {[%emt 0:00:12]} Ke7 {[%emt 0:00:56]} 41. a4 {[%emt 0:02:53]} Kd6 {[%emt 0:01:05]} 42. a5 {[%emt 0:00:43]} Kc6 {[%emt 0:00:18]} 43. Nb4+ {[%emt 0:00:27]} Kb5 {[%emt 0:00:39]} 44. Nc2 {[%emt 0:01:01]} Rd8 {[%emt 0:00:58]} 45. Kg3 {[%emt 0:00:37]} Rg8+ {[%emt 0:00:27]} 46. Kf3 {[%emt 0:01:06]} Re8 {[%emt 0:00:40]} 47. Nd4+ {[%emt 0:00:54]} Ka6 {[%emt 0:00:23]} 48. b4 {[%emt 0:01:00]} Re7 {[%emt 0:00:41]} 49. b5+ {[%emt 0:00:17]} Kb7 {[%emt 0:00:43]} 50. a6+ {[%emt 0:01:51]} Kb6 {[%emt 0:00:21]} 51. Ba5+ {[%emt 0:00:16]} 1-0

[Event "Vienna Championship-B 2022"]
[Site "Vienna"]
[Date "2022.09.18"]
[Round "2.9"]
[White "Nemetz, Markus"]
[Black "Onipko, Mark"]
[Result "1-0"]
[ECO "D35"]
[WhiteElo "1830"]
[BlackElo "1507"]
[Annotator "NA COMBH"]
[PlyCount "71"]
[EventDate "2022.09.17"]
[EventType "swiss"]
[EventCountry "AUT"]
[SourceTitle "playchess.com"]
[Source "ChessBase"]
[SourceQuality "1"]
[TimeControl "5400+30"]

1. d4 {[%emt 0:00:01]} d5 {[%emt 0:00:35]} 2. c4 {[%emt 0:00:07]} e6 {[%emt 0:00:06]} 3. Nc3 {[%emt 0:00:06]} Nf6 {[%emt 0:00:16]} 4. cxd5 {[%emt 0:00:08]} exd5 {[%emt 0:00:08]} 5. Bg5 {[%emt 0:00:09]} Be7 {[%emt 0:00:08]} 6. e3 {[%emt 0:00:12]} O-O {[%emt 0:02:15]} 7. Bd3 {[%emt 0:01:03]} c6 {[%emt 0:02:02]} 8. Nge2 {[%emt 0:01:37]} Bg4 {[%emt 0:01:51]} 9. O-O {[%emt 0:04:00]} Bh5 {[%emt 0:02:52]} 10. Qb3 {[%emt 0:03:58]} Qd7 {[%emt 0:01:49]} 11. Nf4 {[%emt 0:03:18]} Bg6 {[%emt 0:00:40]} 12. Nxg6 {[%emt 0:00:25]} fxg6 {[%emt 0:01:17]} 13. e4 {[%emt 0:02:26]} Rf7 {[%emt 0:04:01]} 14. Bxf6 {[%emt 0:05:22]} Bxf6 {[%emt 0:01:08]} 15. exd5 {[%emt 0:00:05]} Bxd4 {[%emt 0:00:36]} 16. dxc6 {[%emt 0:00:21]} Nxc6 {[%emt 0:02:45]} 17. Bc4 {[%emt 0:00:13]} Raf8 {[%emt 0:00:43]} 18. Bxf7+ {[%emt 0:00:56]} Rxf7 {[%emt 0:00:11]} 19. Nb5 {[%emt 0:01:30]} Bc5 {[%emt 0:00:56]} 20. Kh1 {[%emt 0:03:08]} h6 {[%emt 0:01:18]} 21. Rad1 {[%emt 0:00:22]} Qf5 {[%emt 0:00:47]} 22. Rd5 {[%emt 1:12:03]} Qf4 {[%emt 0:04:43]} 23. Rxc5 {[%emt 0:00:00]} Kh7 {[%emt 0:00:53]} 24. Qd5 {[%emt 0:00:00]} Rf5 {[%emt 0:01:46]} 25. Qc4 {[%emt 0:00:00]} Qxc4 {[%emt 0:00:23]} 26. Rxc4 {[%emt 0:00:00]} Rxb5 {[%emt 0:00:20]} 27. Rc2 {[%emt 0:00:00]} Rd5 {[%emt 0:01:43]} 28. a3 {[%emt 0:00:00]} Ne5 {[%emt 0:00:45]} 29. h3 {[%emt 0:00:00]} b5 {[%emt 0:00:23]} 30. b3 {[%emt 0:00:00]} a6 {[%emt 0:01:16]} 31. f4 {[%emt 0:00:00]} Nd7 {[%emt 0:00:39]} 32. b4 {[%emt 0:00:00]} Rd6 {[%emt 0:01:26]} 33. Rfc1 {[%emt 0:00:00]} Rd4 {[%emt 0:02:00]} 34. Rc7 {[%emt 0:00:00]} Nf6 {[%emt 0:01:00]} 35. R1c6 {[%emt 0:00:00]} h5 {[%emt 0:00:51]} 36. Rxf6 {[%emt 0:00:00]} 1-0

[Event "Vienna Championship-B 2022"]
[Site "Vienna"]
[Date "2022.09.18"]
[Round "2.10"]
[White "Stinner, David"]
[Black "Pantelic, Slobodan"]
[Result "1-0"]
[ECO "E90"]
[WhiteElo "1823"]
[BlackElo "1596"]
[Annotator "NA COMBH"]
[PlyCount "99"]
[EventDate "2022.09.17"]
[EventType "swiss"]
[EventCountry "AUT"]
[SourceTitle "playchess.com"]
[Source "ChessBase"]
[SourceQuality "1"]
[TimeControl "5400+30"]

1. d4 {[%emt 0:00:04]} c5 {[%emt 0:01:38]} 2. d5 {[%emt 0:00:13]} Nf6 {[%emt 0:00:03]} 3. c4 {[%emt 0:00:27]} d6 {[%emt 0:00:03]} 4. Nc3 {[%emt 0:00:36]} g6 {[%emt 0:00:11]} 5. e4 {[%emt 0:00:32]} Bg7 {[%emt 0:00:27]} 6. Bd3 {[%emt 0:00:50]} O-O {[%emt 0:00:23]} 7. h3 {[%emt 0:01:12]} a6 {[%emt 0:00:13]} 8. Nf3 {[%emt 0:01:20]} Nbd7 {[%emt 0:00:02]} 9. O-O {[%emt 0:03:14]} Ne8 {[%emt 0:01:28]} 10. Qc2 {[%emt 0:01:54]} Ne5 {[%emt 0:00:06]} 11. Nxe5 {[%emt 0:02:16]} Bxe5 {[%emt 0:00:05]} 12. Be3 {[%emt 0:02:20]} Bd7 {[%emt 0:00:06]} 13. a4 {[%emt 0:01:21]} Rb8 {[%emt 0:00:17]} 14. a5 {[%emt 0:02:41]} Nc7 {[%emt 0:00:06]} 15. f4 {[%emt 0:08:05]} Bg7 {[%emt 0:00:24]} 16. Ra3 {[%emt 0:16:04]} b5 {[%emt 0:00:15]} 17. axb6 {[%emt 0:00:24]} Rxb6 {[%emt 0:00:04]} 18. b3 {[%emt 0:18:10]} Qb8 {[%emt 0:00:27]} 19. e5 {[%emt 0:09:11]} Qb7 {[%emt 0:00:13]} 20. Be4 {[%emt 0:04:04]} Rb8 {[%emt 0:00:10]} 21. Rb1 {[%emt 0:00:28]} Be8 {[%emt 0:00:14]} 22. Bxc5 {[%emt 0:03:56]} dxc5 {[%emt 0:00:12]} 23. d6 {[%emt 0:00:09]} Bc6 {[%emt 0:00:06]} 24. Bxc6 {[%emt 0:00:07]} Qxc6 {[%emt 0:00:02]} 25. dxc7 {[%emt 0:00:08]} Rc8 {[%emt 0:02:03]} 26. Nd5 {[%emt 0:00:13]} Rxc7 {[%emt 0:00:44]} 27. Nxb6 {[%emt 0:06:35]} Qxb6 {[%emt 0:00:07]} 28. Qd2 {[%emt 0:00:42]} Qc6 {[%emt 0:00:37]} 29. Qd5 {[%emt 0:01:19]} Bf8 {[%emt 0:00:42]} 30. Qxc6 {[%emt 0:00:33]} Rxc6 {[%emt 0:00:02]} 31. Rd1 {[%emt 0:00:21]} e6 {[%emt 0:00:17]} 32. Rd8 {[%emt 0:00:22]} Rb6 {[%emt 0:00:09]} 33. Kf2 {[%emt 0:01:05]} a5 {[%emt 0:00:03]} 34. Rxa5 {[%emt 0:00:29]} Kg7 {[%emt 0:00:12]} 35. Rd3 {[%emt 0:00:14]} h5 {[%emt 0:00:11]} 36. Ra7 {[%emt 0:00:58]} g5 {[%emt 0:00:25]} 37. fxg5 {[%emt 0:00:27]} Kg6 {[%emt 0:00:13]} 38. Rf3 {[%emt 0:00:34]} Kxg5 {[%emt 0:00:16]} 39. Raxf7 {[%emt 0:00:35]} Rb8 {[%emt 0:00:34]} 40. Rxf8 {[%emt 0:00:26]} Rb6 {[%emt 0:00:41]} 41. Rg8+ {[%emt 0:00:09]} Kh6 {[%emt 0:00:05]} 42. h4 {[%emt 0:00:22]} Rb7 {[%emt 0:00:45]} 43. Rfg3 {[%emt 0:01:45]} Kh7 {[%emt 0:00:08]} 44. Rc8 {[%emt 0:01:52]} Rf7+ {[%emt 0:00:03]} 45. Ke2 {[%emt 0:00:27]} Rf5 {[%emt 0:00:03]} 46. Rxc5 {[%emt 0:00:28]} Rf4 {[%emt 0:00:06]} 47. b4 {[%emt 0:00:54]} Rxh4 {[%emt 0:00:07]} 48. b5 {[%emt 0:00:07]} Re4+ {[%emt 0:00:17]} 49. Kd3 {[%emt 0:00:07]} Re1 {[%emt 1:38:55]} 50. b6 {[%emt 0:14:40]} 1-0

[Event "Vienna Championship-B 2022"]
[Site "Vienna"]
[Date "2022.09.18"]
[Round "2.11"]
[White "Kern, Julian"]
[Black "Gratze, Michael"]
[Result "0-1"]
[ECO "E71"]
[WhiteElo "1694"]
[BlackElo "1954"]
[Annotator "TA"]
[PlyCount "104"]
[EventDate "2022.09.17"]
[EventType "swiss"]
[EventCountry "AUT"]
[SourceTitle "playchess.com"]
[Source "ChessBase"]
[SourceQuality "1"]
[TimeControl "5400+30"]

{[%evp 9,104,38,59,33,40,32,60,27,62,45,46,50,62,61,59,33,33,38,61,57,38,39,44,36,47,0,120,106,141,147,180,-171,-174,-174,-169,-187,-179,-285,-277,-249,-272,-452,-201,-172,-33,-37,-38,-43,-26,-22,0,0,0,0,0,-84,0,0,0,-50,-44,-85,-85,-85,-85,-85,-85,-85,-75,-85,-85,-85,-85,-107,-22,-304,-316,-316,-316,-293,-279,-264,-264,-264,-174,-152,-111,-29980,-29981,-29981,-29982,-29982,-29983,-29983,-29984,-29984,-29985]} 1. d4 {[%emt 0:00:02]} Nf6 {[%emt 0:01:40]} 2. c4 {[%emt 0:00:09]} g6 {[%emt 0:00:03]} 3. Nc3 {[%emt 0:00:07]} Bg7 {[%emt 0:00:03]} 4. e4 {[%emt 0:00:19]} d6 {[%emt 0:00:02]} 5. h3 {[%emt 0:00:15]} Nbd7 {[%emt 0:00:05]} 6. Be3 {[%emt 0:00:55] E71: King's Indian: 4 e4 d6 5 h3.} e5 {[%emt 0:00:45]} 7. d5 {[%emt 0:00:41]} Nc5 {[%emt 0:00:31]} 8. f3 {[%emt 0:02:19] White is slightly better.} Nh5 {[%emt 0:01:08]} 9. Nge2 {[%emt 0:02:33] [#] Inhibits Ng3.} a5 $146 {[%emt 0:02:38]} ({Predecessor:} 9... O-O 10. Qd2 f5 11. exf5 gxf5 12. g4 Nf4 13. O-O-O Nfd3+ 14. Kb1 f4 15. Bxc5 Nxc5 {0-1 (34) Anton Guijarro,D (2675)-Firouzja,A (2749) chess24.com INT 2020}) 10. Qd2 {[%emt 0:03:05]} O-O {[%emt 0:01:13]} 11. g4 {[%emt 0:01:29]} Nf4 {[%emt 0:00:19]} 12. Nxf4 {[%emt 0:04:26]} exf4 {[%emt 0:00:04]} 13. Bxf4 {[%emt 0:00:24]} Qh4+ {[%emt 0:02:34]} 14. Qf2 {[%emt 0:01:48]} Qe7 {[%emt 0:04:17]} 15. O-O-O {[%emt 0:09:40]} a4 $1 {[%emt 0:00:13]} 16. Qd2 {[%emt 0:02:53]} a3 {[%emt 0:00:20] Strongly threatening ...axb2+.} 17. b3 {[%emt 0:00:21]} (17. b4 $14 Na4 18. Nxa4 Rxa4 19. Kc2) 17... Qf6 {[%emt 0:11:56]} (17... f5 $11 18. gxf5 Kh8) 18. Kc2 $16 {[%emt 0:06:35]} Na6 {[%emt 0:01:17][%cal Bc5a6,Ba6b4,Bb4a2][%mdl 32] Hoping for ...Nb4+.} 19. Rc1 $1 {[%emt 0:03:40]} Nb4+ {[%emt 0:00:51] [#]} 20. Kd1 $4 {[%emt 0:00:32][%mdl 8192]} (20. Kb1 $1 $18) 20... g5 $1 $36 {[%emt 0:00:31][%mdl 2048] Keeping White busy.} 21. Ne2 {[%emt 0:03:18]} Nxa2 {[%emt 0:01:18]} 22. Qxa2 {[%emt 0:01:48][%cal Oe4e5]} gxf4 {[%emt 0:00:05]} 23. Rh2 {[%emt 0:05:26]} (23. h4 $142) 23... Bd7 {[%emt 0:03:37]} 24. Nc3 {[%emt 0:08:37]} Qd4+ {[%emt 0:00:31]} 25. Qd2 $2 {[%emt 0:02:46]} (25. Rd2 Qc5 26. Be2) 25... Qxd2+ {[%emt 0:01:56]} (25... Qg1 $142 26. Kc2 a2) 26. Kxd2 {[%emt 0:00:42] [#]} Ra7 {[%emt 0:03:29]} ({Black should try} 26... a2 $1 $19 {[%cal Ra2a1]} 27. Ra1 Ra3 28. Rxa2 Rxb3) 27. Kd3 $15 {[%emt 0:04:11]} Rfa8 {[%emt 0:00:33]} 28. Ra2 $1 {[%emt 0:00:37]} c6 {[%emt 0:01:07]} 29. h4 {[%emt 0:03:24]} b5 {[%emt 0:00:32]} 30. dxc6 {[%emt 0:03:12]} bxc4+ {[%emt 0:00:02]} 31. bxc4 {[%emt 0:00:19]} Bxc6 {[%emt 0:00:05] A strong pair of Bishops.} 32. Nb5 {[%emt 0:01:08]} (32. Rb1 $11 {keeps the balance.}) 32... Bxb5 {[%emt 0:00:14]} (32... Ra4 $17) 33. cxb5 $11 {[%emt 0:00:15]} Bb2 {[%emt 0:00:03]} 34. Rb1 {[%emt 0:06:07]} ({Better is} 34. Rc6 $11) 34... Ra4 $15 {[%emt 0:01:57]} 35. Kc2 {[%emt 0:01:44]} Rb4 {[%emt 0:02:13] Black is more active.} 36. Rbxb2 {[%emt 0:03:33]} Rxb2+ {[%emt 0:03:03]} 37. Rxb2 {[%emt 0:00:08]} axb2 {[%emt 0:00:22]} 38. Kxb2 $17 {[%emt 0:00:09][%mdl 4096] Endgame KR-KB} Kf8 {[%emt 0:00:01]} 39. Bd3 {[%emt 0:01:56]} h6 {[%emt 0:00:17]} 40. Kb3 {[%emt 0:01:00]} Ke7 {[%emt 0:00:11]} 41. Kb4 {[%emt 0:00:36]} Kd7 {[%emt 0:00:39]} (41... Ra2 $17 {And now ...Rf2 would win.} 42. e5 dxe5) 42. g5 $2 {[%emt 0:03:31][%mdl 8192]} (42. Bc4 $11 {and White is okay.}) 42... hxg5 $19 {[%emt 0:00:13]} 43. hxg5 {[%emt 0:00:02]} Rg8 {[%emt 0:00:09]} 44. Bc4 {[%emt 0:00:57]} Rxg5 {[%emt 0:00:07] White must now prevent ...Rg3.} 45. Bxf7 {[%emt 0:00:15]} Rg3 {[%emt 0:00:32]} 46. Bh5 {[%emt 0:02:06]} Kc7 {[%emt 0:00:08]} 47. Kc4 {[%emt 0:01:00]} Kb6 {[%emt 0:00:42]} 48. Kd5 $2 {[%emt 0:00:25][%mdl 8192]} (48. Bg4 $17) 48... Rg5+ {[%emt 0:00:16] Black mates.} 49. Kxd6 {[%emt 0:00:26]} Rxh5 {[%emt 0:00:04]} 50. e5 {[%emt 0:00:26]} Rh3 {[%emt 0:00:16]} 51. Kd5 {[%emt 0:01:08]} Rxf3 {[%emt 0:00:07]} 52. Ke4 {[%emt 0:00:08]} Rf1 {[%emt 0:00:07] Never resign too early!  Weighted Error Value: White=0.42/Black=0.28 (precise)} 0-1

[Event "Vienna Championship-B 2022"]
[Site "Vienna"]
[Date "2022.09.18"]
[Round "2.13"]
[White "Iehl, William"]
[Black "Mayrhuber, Franz"]
[Result "1-0"]
[ECO "D06"]
[WhiteElo "1781"]
[BlackElo "1718"]
[Annotator "NA COMBH"]
[PlyCount "93"]
[EventDate "2022.09.17"]
[EventType "swiss"]
[EventCountry "AUT"]
[SourceTitle "playchess.com"]
[Source "ChessBase"]
[SourceQuality "1"]
[TimeControl "5400+30"]

1. Nf3 {[%emt 0:00:03]} d5 {[%emt 0:13:03]} 2. c4 {[%emt 0:00:28]} Nf6 {[%emt 0:00:43]} 3. cxd5 {[%emt 0:00:03]} Nxd5 {[%emt 0:00:14]} 4. e4 {[%emt 0:00:01]} Nb6 {[%emt 0:00:21]} 5. d4 {[%emt 0:00:14]} Bg4 {[%emt 0:00:29]} 6. Be2 {[%emt 0:00:03]} e6 {[%emt 0:00:20]} 7. O-O {[%emt 0:00:45]} Be7 {[%emt 0:00:17]} 8. Nc3 {[%emt 0:00:21]} O-O {[%emt 0:00:09]} 9. Be3 {[%emt 0:00:09]} c6 {[%emt 0:02:46]} 10. Rc1 {[%emt 0:14:30]} N8d7 {[%emt 0:00:12]} 11. e5 {[%emt 0:12:53]} Nd5 {[%emt 0:00:41]} 12. Ne4 {[%emt 0:00:36]} N7b6 {[%emt 0:01:12]} 13. Nc5 {[%emt 0:03:08]} Qc7 {[%emt 0:04:26]} 14. Qd2 {[%emt 0:04:37]} Rfd8 {[%emt 0:00:34]} 15. Rfd1 {[%emt 0:02:53]} Nxe3 {[%emt 0:00:52]} 16. Qxe3 {[%emt 0:02:29]} Nd5 {[%emt 0:00:24]} 17. Qb3 {[%emt 0:00:11]} Rab8 {[%emt 0:01:20]} 18. Qa4 {[%emt 0:03:56]} Bxc5 {[%emt 0:06:00]} 19. Rxc5 {[%emt 0:00:32]} Nf4 {[%emt 0:03:01]} 20. Kf1 {[%emt 0:03:17]} Qe7 {[%emt 0:04:38]} 21. a3 {[%emt 0:03:48]} a6 {[%emt 0:05:40]} 22. b4 {[%emt 0:06:45]} h6 {[%emt 0:00:42]} 23. Qc2 {[%emt 0:01:49]} Bf5 {[%emt 0:01:27]} 24. Qc3 {[%emt 0:00:19]} Rd7 {[%emt 0:01:13]} 25. Bc4 {[%emt 0:03:25]} Rbd8 {[%emt 0:01:03]} 26. g3 {[%emt 0:04:54]} Ng6 {[%emt 0:07:10]} 27. a4 {[%emt 0:02:27]} Bg4 {[%emt 0:01:12]} 28. Kg2 {[%emt 0:02:07]} Bxf3+ {[%emt 0:00:26]} 29. Kxf3 {[%emt 0:00:32]} Qg5 {[%emt 0:02:50]} 30. Kg2 {[%emt 0:01:47]} Qg4 {[%emt 0:02:06]} 31. f3 {[%emt 0:00:37]} Qg5 {[%emt 0:04:02]} 32. b5 {[%emt 0:02:36]} axb5 {[%emt 0:02:29]} 33. axb5 {[%emt 0:00:15]} Nf4+ {[%emt 0:01:39]} 34. Kf2 {[%emt 0:01:24]} Nd5 {[%emt 0:00:17]} 35. Bxd5 {[%emt 0:01:16]} cxd5 {[%emt 0:00:21]} 36. Ra1 {[%emt 0:03:16]} Rb8 {[%emt 0:02:17]} 37. Ra7 {[%emt 0:01:04]} Qd8 {[%emt 0:01:50]} 38. Ra2 {[%emt 0:05:22]} Kf8 {[%emt 0:00:39]} 39. Rc2 {[%emt 0:01:08]} Ke7 {[%emt 0:00:24]} 40. Rc7 {[%emt 0:00:44]} g6 {[%emt 0:03:17]} 41. b6 {[%emt 0:05:46]} h5 {[%emt 0:01:50]} 42. h3 {[%emt 0:03:21]} Ke8 {[%emt 0:01:19]} 43. Qe3 {[%emt 0:01:02]} Ke7 {[%emt 0:04:39]} 44. Qf4 {[%emt 0:01:00]} Qe8 {[%emt 0:03:51]} 45. Rxd7+ {[%emt 0:01:56]} Kxd7 {[%emt 0:00:19]} 46. Rc7+ {[%emt 0:00:08]} Kd8 {[%emt 0:00:19]} 47. Qf6+ {[%emt 0:00:25]} 1-0

[Event "Vienna Championship-B 2022"]
[Site "Vienna"]
[Date "2022.09.18"]
[Round "2.14"]
[White "Wickramasinghe, Nathaniel"]
[Black "Pavlov, Alexander"]
[Result "0-1"]
[ECO "C50"]
[WhiteElo "1760"]
[BlackElo "1751"]
[Annotator "NA COMBH"]
[PlyCount "128"]
[EventDate "2022.09.17"]
[EventType "swiss"]
[EventCountry "AUT"]
[SourceTitle "playchess.com"]
[Source "ChessBase"]
[SourceQuality "1"]
[TimeControl "5400+30"]

1. e4 {[%emt 0:00:01]} e5 {[%emt 0:00:06]} 2. Nf3 {[%emt 0:00:04]} Nc6 {[%emt 0:00:05]} 3. Bc4 {[%emt 0:00:05]} Bc5 {[%emt 0:00:05]} 4. O-O {[%emt 0:00:08]} Nf6 {[%emt 0:00:45]} 5. d4 {[%emt 0:00:06]} Bxd4 {[%emt 0:00:49]} 6. Nxd4 {[%emt 0:00:06]} Nxd4 {[%emt 0:00:08]} 7. Bg5 {[%emt 0:01:09]} d6 {[%emt 0:01:08]} 8. f4 {[%emt 0:00:12]} Be6 {[%emt 0:01:37]} 9. fxe5 {[%emt 0:02:33]} dxe5 {[%emt 0:02:15]} 10. Bxe6 {[%emt 0:01:08]} Nxe6 {[%emt 0:01:22]} 11. Bxf6 {[%emt 0:00:28]} Qxd1 {[%emt 0:00:33]} 12. Rxd1 {[%emt 0:00:05]} gxf6 {[%emt 0:00:05]} 13. Nc3 {[%emt 0:00:06]} O-O {[%emt 0:00:38]} 14. Nd5 {[%emt 0:00:37]} Kg7 {[%emt 0:02:02]} 15. Rd3 {[%emt 0:01:27]} Nf4 {[%emt 0:02:47]} 16. Nxf4 {[%emt 0:00:40]} exf4 {[%emt 0:00:07]} 17. Rf1 {[%emt 0:00:09]} Rad8 {[%emt 0:00:44]} 18. Rxf4 {[%emt 0:00:53]} Rxd3 {[%emt 0:00:55]} 19. cxd3 {[%emt 0:00:04]} Rd8 {[%emt 0:00:38]} 20. Rf3 {[%emt 0:00:07]} Rd6 {[%emt 0:01:14]} 21. Kf2 {[%emt 0:00:10]} Rb6 {[%emt 0:00:21]} 22. b3 {[%emt 0:00:08]} Ra6 {[%emt 0:00:19]} 23. a4 {[%emt 0:00:05]} Rb6 {[%emt 0:00:08]} 24. d4 {[%emt 0:00:04]} Rb4 {[%emt 0:00:08]} 25. Rc3 {[%emt 0:00:27]} Rxd4 {[%emt 0:00:31]} 26. Rxc7 {[%emt 0:00:07]} Rb4 {[%emt 0:00:07]} 27. Rc3 {[%emt 0:00:22]} Rxe4 {[%emt 0:00:11]} 28. Kf3 {[%emt 0:00:15]} f5 {[%emt 0:02:43]} 29. Rc5 {[%emt 0:01:32]} Rb4 {[%emt 0:02:55]} 30. Rb5 {[%emt 0:02:44]} Rxb5 {[%emt 0:02:32]} 31. axb5 {[%emt 0:00:05]} Kf6 {[%emt 0:00:28]} 32. Kf4 {[%emt 0:00:06]} h6 {[%emt 0:02:09]} 33. h4 {[%emt 0:00:14]} Ke6 {[%emt 0:05:09]} 34. g3 {[%emt 0:00:40]} a6 {[%emt 0:07:16]} 35. b6 {[%emt 0:00:32]} a5 {[%emt 0:00:34]} 36. h5 {[%emt 0:00:16]} Kf6 {[%emt 0:01:13]} 37. Ke3 {[%emt 0:01:09]} Ke5 {[%emt 0:01:04]} 38. Kf3 {[%emt 0:03:30]} Kd4 {[%emt 0:01:04]} 39. Kf4 {[%emt 0:00:25]} Kc3 {[%emt 0:00:04]} 40. Kxf5 {[%emt 0:00:57]} Kxb3 {[%emt 0:00:05]} 41. g4 {[%emt 0:00:08]} f6 {[%emt 0:05:22]} 42. Kg6 {[%emt 0:02:42]} a4 {[%emt 0:00:52]} 43. Kxh6 {[%emt 0:00:14]} a3 {[%emt 0:00:04]} 44. Kg7 {[%emt 0:00:26]} a2 {[%emt 0:00:33]} 45. h6 {[%emt 0:00:12]} a1=Q {[%emt 0:00:08]} 46. Kg8 {[%emt 0:00:09]} Qd4 {[%emt 0:00:20]} 47. h7 {[%emt 0:00:34]} Qxg4+ {[%emt 0:00:15]} 48. Kh8 {[%emt 0:00:08]} Qh5 {[%emt 0:00:28]} 49. Kg7 {[%emt 0:00:05]} f5 {[%emt 0:00:04]} 50. h8=Q {[%emt 0:00:12]} Qxh8+ {[%emt 0:00:03]} 51. Kxh8 {[%emt 0:00:10]} f4 {[%emt 0:00:03]} 52. Kg7 {[%emt 0:00:06]} f3 {[%emt 0:00:03]} 53. Kf6 {[%emt 0:00:03]} f2 {[%emt 0:00:04]} 54. Ke5 {[%emt 0:00:05]} f1=Q {[%emt 0:00:05]} 55. Kd6 {[%emt 0:00:03]} Qc4 {[%emt 0:00:09]} 56. Kd7 {[%emt 0:00:07]} Qc6+ {[%emt 0:00:17]} 57. Kd8 {[%emt 0:00:05]} Qxb6+ {[%emt 0:00:44]} 58. Kc8 {[%emt 0:00:06]} Qc6+ {[%emt 0:00:07]} 59. Kb8 {[%emt 0:00:25]} b5 {[%emt 0:00:08]} 60. Ka7 {[%emt 0:00:05]} Kb4 {[%emt 0:00:04]} 61. Kb8 {[%emt 0:00:05]} Qd7 {[%emt 0:00:07]} 62. Ka8 {[%emt 0:00:43]} Kc5 {[%emt 0:00:20]} 63. Kb8 {[%emt 0:00:06]} Kb6 {[%emt 0:00:06]} 64. Ka8 {[%emt 0:00:02]} Qb7# {[%emt 0:00:08]} 0-1

[Event "Vienna Championship-B 2022"]
[Site "Vienna"]
[Date "2022.09.20"]
[Round "4.1"]
[White "Wagner, Leopold Franziskus"]
[Black "Bonk, Andras"]
[Result "1/2-1/2"]
[ECO "B20"]
[WhiteElo "2201"]
[BlackElo "2175"]
[Annotator "TA"]
[PlyCount "47"]
[EventDate "2022.09.17"]
[EventType "swiss"]
[EventCountry "AUT"]
[SourceTitle "playchess.com"]
[Source "ChessBase"]
[SourceQuality "1"]
[TimeControl "5400+30"]

{[%evp 9,47,-18,10,-22,25,-20,-18,-12,-15,-16,-14,-14,-14,-14,-14,-20,27,-18,14,-12,-10,-4,12,1,27,-8,6,0,0,0,0,-7,0,6,34,0,0,-4,1,0]} 1. e4 {[%emt 0:00:01][%cal Be2e4,Be4e5][%mdl 32]} c5 {[%emt 0:00:04]} 2. b3 {[%emt 0:00:04]} Nc6 {[%emt 0:00:12]} 3. Bb2 {[%emt 0:00:05]} Nf6 {[%emt 0:00:14]} 4. e5 {[%emt 0:00:17]} Nd5 {[%emt 0:00:20]} 5. Bc4 {[%emt 0:00:08]} Nc7 {[%emt 0:03:26]} 6. Nf3 {[%emt 0:01:21] B20: Sicilian: Unusual White 2nd moves.} Ne6 {[%emt 0:09:28] [#]} (6... d5 {is superior.} 7. exd6 exd6) 7. c3 $146 {[%emt 0:07:56]} ({Predecessor:} 7. Nc3 g6 8. Ne4 b6 9. Nfg5 Bg7 10. Nxf7 Kxf7 11. Qf3+ Ke8 12. Bxe6 Rf8 13. Qh3 dxe6 14. Qxh7 Bxe5 15. Qxg6+ {0-1 (34) Kapusta,P (2130)-Bares,J (2103) Valasska Bystrice 2022}) 7... d5 {[%emt 0:00:16]} 8. exd6 {[%emt 0:00:18]} exd6 {[%emt 0:00:36]} 9. d4 {[%emt 0:08:58] [#] aiming for d5.} d5 {[%emt 0:03:13]} 10. Bb5 {[%emt 0:04:19]} a6 {[%emt 0:04:44]} 11. Bxc6+ {[%emt 0:00:15]} bxc6 {[%emt 0:00:01]} 12. O-O {[%emt 0:00:29]} Qb6 {[%emt 0:10:13]} (12... Bd6 {feels stronger.}) 13. Nbd2 {[%emt 0:02:12]} Be7 {[%emt 0:03:32]} 14. dxc5 {[%emt 0:01:14]} Bxc5 {[%emt 0:01:34]} 15. b4 {[%emt 0:02:59]} O-O {[%emt 0:02:50]} 16. Nb3 {[%emt 0:04:08]} Be7 {[%emt 0:01:36][%cal Oa6a5]} 17. Re1 {[%emt 0:03:21]} Bf6 {[%emt 0:01:21][%cal Oa6a5]} 18. a3 {[%emt 0:02:36]} c5 {[%emt 0:07:17]} 19. Qxd5 {[%emt 0:08:41][%cal Rb4c5]} Bb7 {[%emt 0:00:34]} 20. Qf5 {[%emt 0:00:11]} cxb4 {[%emt 0:03:51]} 21. axb4 {[%emt 0:00:30]} Rac8 {[%emt 0:01:19]} 22. Nfd4 {[%emt 0:10:17]} (22. Ne5 $5 {[%cal Re5d7]}) 22... Nxd4 {[%emt 0:03:51]} 23. Nxd4 {[%emt 0:00:04]} Rfd8 {[%emt 0:03:53]} 24. Rad1 {[%emt 0:02:13] An interesting draw.  Weighted Error Value: White=0.14 (very precise) /Black=0.16 (very precise)} 1/2-1/2